Cogmind - Beta 16 @@@ ROGUE MODE // 2025.10.22 @ 21:01:48 // Winter2019/RPGLIKE Player: Rentaro Result: Destroyed by BK-IT5(E) with Heavy Battle Rifle Performance ------------- Evolutions (0) 0 Regions Visited (4) 800 Robots Destroyed (41) 205 Value Destroyed (1333) 1333 Prototype IDs (6) 120 Alien Tech Used (0) 0 Bonus (-24) -24 TOTAL SCORE: 2434 Bonus ------- Friendly Fire -24 Cogmind --------- Core Integrity 0/600 Matter 290/300 Energy 23/125 System Corruption 0% Temperature Cool (9) Movement Flying (34) Location -7/Scraptown Parts ------- > --- POWER (1) -------- Light Ion Engine > --- PROPULSION (3) --- Flight Unit Flight Unit Flight Unit > --- UTILITY (3) ------ Structural Scanner Improved Shield Generator Makeshift System Restoration Module > --- WEAPON (2) ------- Battle Cannon > --- INVENTORY (4) ---- Micro Nuclear Core Scrap Shield Chainsword Peak State ------------ > --- POWER ------------ Light Ion Engine > --- PROPULSION ------- Flight Unit Flight Unit Flight Unit > --- UTILITY ---------- Structural Scanner Improved Shield Generator Makeshift System Restoration Module > --- WEAPON ----------- Battle Cannon Chainsword > --- INVENTORY -------- Micro Nuclear Core Scrap Shield [Rating: 19] Favorites ----------- Power Light Ion Engine Engine Light Ion Engine Power Core Micro Nuclear Core Propulsion Flight Unit Leg Aluminum Leg Flight Unit Flight Unit Utility Structural Scanner Device Structural Scanner Protection Power Shielding Weapon EM Pulse Gun Energy Gun EM Pulse Gun Ballistic Gun Light Assault Rifle Ballistic Cannon Battle Cannon Special Weapon Mining Laser Slashing Weapon Chainsword Build | -11 -10 -10 -7 -7 ------- Run | Yrd Mat Sub Rec Scr Slots Evolved 5 | 3 . 2 . . Power . | . . . . . Propulsion 2 | 1 . 1 . . Utility 2 | 1 . 1 . . Weapon 1 | 1 . . . . Parts Attached 19 | 6 7 3 1 2 Power 2 | 1 . . . 1 Engine 1 | 1 . . . . Core 1 | . . . . 1 Reactor . | . . . . . Propulsion 5 | 2 2 1 . . Treads . | . . . . . Leg 2 | 2 . . . . Wheel . | . . . . . Hover . | . . . . . Flight 3 | . 2 1 . . Utility 6 | . 4 1 1 . Device 5 | . 3 1 1 . Storage . | . . . . . Processor . | . . . . . Hackware . | . . . . . Protection 1 | . 1 . . . Artifact . | . . . . . Weapon 6 | 3 1 1 . 1 Energy Gun 2 | 2 . . . . Energy Cannon . | . . . . . Ballistic Gun 1 | 1 . . . . Ballistic Cannon 1 | . . 1 . . Launcher . | . . . . . Special Weapon 1 | . 1 . . . Impact Weapon . | . . . . . Slashing Weapon 1 | . . . . 1 Piercing Weapon . | . . . . . Special Melee Weapon . | . . . . . Unidentified Prototypes . | . . . . . Parts Lost 1 | . . . 1 . Power . | . . . . . Propulsion . | . . . . . Utility . | . . . . . Weapon 1 | . . . 1 . Highest Loss Streak 1 | . . . 1 . To Critical Strikes . | . . . . . Average Backups 1 | 1 1 1 2 3 Power . | . . . . 1 Propulsion . | . . . . . Utility . | . . . 1 1 Weapon . | 1 1 . . 1 Tool/Special . | . . . . . Unused Backups 4 | . . . . 4 Power . | . . . . . Propulsion . | . . . . . Utility 1 | . . . . 1 Weapon 3 | . . . . 3 Tool/Special . | . . . . . Average Slot Usage (%) 94 | . 95 94 95 88 Engine 13 | . 14 13 11 11 Leg 9 | . 18 . . . Flight 19 | . 9 27 33 33 Device 19 | . 14 19 32 33 Protection 6 | . 8 7 . . Energy Gun 15 | . 23 12 . . Ballistic Cannon 4 | . . 6 11 11 Special Weapon 5 | . 4 7 7 . Peak Build Rating 19 | 5 7 12 16 19 Average Rating 9 | 3 6 9 15 16 On Entrance 8 | . 5 7 12 16 Avg Prop Armor Cover (%) . | . . . . . Naked Turns . | . . . . . Heaviest Build 19 | 7 9 14 17 19 Greatest Support 25 | 25 25 17 17 17 Greatest Overweight (x) 1 | . . 1 . 1 Average Overweight (x) . | . . . . . Largest Inventory Capacity 4 | 2 2 4 4 4 Average Capacity 2 | 1 2 3 4 4 Most Carried 4 | 2 2 4 4 4 Average Carried 2 | 1 1 2 3 3 Final Capacity 4 | 2 2 4 4 4 Final Carried 4 | 2 1 3 4 4 Class Distribution -------------------- 100% | Mutant Dominant Class ---------------- Mutant | -10/Materials Mutant | -10/Subcaves Mutant | -7/Recycling Mutant | -7/Scraptown Resources | -11 -10 -10 -7 -7 ----------- Run | Yrd Mat Sub Rec Scr Matter Collected 979 | 276 166 300 217 20 Remotely 10 | . 10 . . . Salvage Created 1314 | 88 780 249 197 . Parts 75 | 2 50 16 7 . Haulers Intercepted 2 | . 2 . . . Recyclers Shooed 3 | . 3 . . . Parts Field Recycled . | . . . . . Retrieved Matter . | . . . . . Parts Self-Destructed 10 | . . 10 . . Prevented 1 | . . 1 . . Parts Restored . | . . . . . Kills | -11 -10 -10 -7 -7 ------- Run | Yrd Mat Sub Rec Scr Combat Hostiles Destroyed 24 | . 11 12 1 . Guns 12 | . 10 2 . . Cannons 11 | . . 10 1 . AOE 1 | . 1 . . . Classes Destroyed 11 | 1 7 2 1 . Worker 1 | . 1 . . . Builder 4 | . 3 . 1 . Tunneler 1 | . 1 . . . Hauler 2 | . 2 . . . Recycler 6 | 1 2 . 3 . Operator 1 | . 1 . . . Watcher 2 | . 2 . . . Swarmer 6 | . . 6 . . Grunt 11 | . 11 . . . Sentry 1 | . . . 1 . Subdweller 6 | . . 6 . . Best Kill Streak 5 | 1 5 3 3 . Combat Bots Only 3 | . 2 3 1 . Max Kills in Single Turn 2 | 1 1 2 1 . Gunslinging . | . . . . . Exploded 1 | . 1 . . . Melee . | . . . . . Uniques/NPCs Destroyed . | . . . . . Combat | -11 -10 -10 -7 -7 -------- Run | Yrd Mat Sub Rec Scr Hostile Shots Fired 255 | . 45 98 99 13 Missed 93 | . 12 41 34 6 Hits 162 | . 33 57 65 7 Melee 1 | . . . . 1 Projectile 161 | . 33 57 65 6 Critical Strikes 3 | . . 2 . 1 Damage Taken 2379 | . 679 1030 567 103 Core 1971 | . 563 860 462 86 Absorbed by Shields 92 | . . . 62 30 Redirected to Core 1321 | . 370 569 325 57 Redirected to Shielding 12 | . 4 8 . . Core Remaining (%) 100 | 100 . . . . Volleys Fired 283 | 11 138 79 55 . Largest 2 | 2 2 2 2 . Hottest 140 | 80 140 133 133 . Shots Fired 443 | 18 244 125 56 . Gun 286 | 18 210 58 . . Cannon 69 | . . 31 38 . Launcher . | . . . . . Special 88 | . 34 36 18 . Kinetic 75 | 6 . 31 38 . Thermal 88 | . 34 36 18 . Explosive . | . . . . . Electromagnetic 280 | 12 210 58 . . Robot Hit Streak 29 | 2 9 29 7 . Robot Miss Streak 5 | 4 4 5 1 . Penetration Max . | . . . . . Secondary Targets . | . . . . . Shots Hit Robots 170 | 7 78 67 18 . Core Hits 72 | 2 38 25 7 . Critical Kills . | . . . . . Critical Parts Destroyed . | . . . . . Critical Strikes 5 | . 2 2 1 . Blast 2 | . . 1 1 . Corrupt 3 | . 2 1 . . Melee Attacks 1 | . . . . 1 Impact . | . . . . . Slashing 1 | . . . . 1 Piercing . | . . . . . Sneak Attacks . | . . . . . Combat Hostiles . | . . . . . Follow-up Attacks . | . . . . . Damage Inflicted 2938 | 86 1320 1069 463 . Guns 1606 | 86 1065 455 . . Cannons 911 | . . 518 393 . Explosions 299 | . 253 . 46 . Melee . | . . . . . Ramming 2 | . 2 . . . Kinetic 926 | 15 . 518 393 . Thermal 373 | . 253 96 24 . Explosive 46 | . . . 46 . Electromagnetic 1591 | 71 1065 455 . . Impact . | . . . . . Slashing . | . . . . . Piercing . | . . . . . Highest Corruption 1 | . 1 1 . . Average Corruption 1 | . 1 1 . . Corruption Purged 1 | . . 1 . . Corruption Blocked . | . . . . . Effects 11 | . 3 8 . . Message Errors 4 | . 1 3 . . Matter Fused 2 | . 1 1 . . Heat Flow Errors 1 | . 1 . . . Energy Discharges 2 | . . 2 . . Alerts 1 | . . 1 . . Weapon Failures 1 | . . 1 . . Overload Shots . | . . . . . Overflow Damage 4 | . . 4 . . Projectiles 4 | . . 4 . . Explosions . | . . . . . Melee . | . . . . . Knockbacks 5 | . . 5 . . Impact . | . . . . . Kinetic 5 | . . 5 . . Secondary . | . . . . . Self-Inflicted Damage 386 | . 239 . 147 . Shots 6 | . 4 . 2 . Rammed . | . . . . . Targets Rammed 1 | . 1 . . . Kicked 1 | . 1 . . . Crushed . | . . . . . Highest Temperature 217 | 72 217 . 176 . Average Temperature 53 | 32 46 . 77 . Received Heat Transfer 580 | . 216 219 124 21 Siege Activations . | . . . . . Martial Activations . | . . . . . Shielding Activations . | . . . . . Robots Disrupted . | . . . . . Combat Hostiles . | . . . . . Robots Corrupted . | . . . . . Combat Hostiles . | . . . . . Parts Fried 10 | . 8 2 . . Impact Corruptions . | . . . . . Robots Melted . | . . . . . Combat Hostiles . | . . . . . Parts Melted . | . . . . . Heat Transferred 450 | . 200 200 50 . Parts Sabotaged . | . . . . . Parts Stolen . | . . . . . Parts Stripped . | . . . . . Power Chain Reactions 5 | . 5 . . . Alert | -11 -10 -10 -7 -7 ------- Run | Yrd Mat Sub Rec Scr Maximum Alert Level 2 | . 2 . 1 . Low Security (%) 77 | 100 76 . 76 . Level 1 20 | . 21 . 23 . Level 2 1 | . 2 . . . Level 3 . | . . . . . Level 4 . | . . . . . Level 5 . | . . . . . High Security . | . . . . . Max Security . | . . . . . Peak Influence 422 | 5 422 . 240 . Initial 65 | . . . 65 . Average 110 | . 123 . 94 . Influence Increases 1552 | 5 982 195 370 . Destroy 0b10 Robot/C 360 | . 220 120 20 . Destroy 0b10 Robot/NC 85 | 5 60 . 20 . Destroy Leader 58 | . 58 . . . Successful Hack 58 | . 29 . 29 . Disable Machine 675 | . 405 . 270 . Destroy Structure 181 | . 150 . 31 . Partial Spotted 30 | . 30 . . . Lose Combat Pursuer 105 | . 30 75 . . Influence Decreases 1552 | 5 566 474 312 195 Entered New Map 467 | . . 200 72 195 Time Decay 1075 | 5 566 274 230 . Lost Part 10 | . . . 10 . Squads Dispatched 2 | . 2 . . . Investigation 2 | . 2 . . . Extermination . | . . . . . Reinforcement . | . . . . . Assault . | . . . . . Garrison . | . . . . . Intercept . | . . . . . Searches Triggered . | . . . . . Construction Impeded . | . . . . . Haulers Reinforced . | . . . . . Active Scanning Responses . | . . . . . Cargo Convoy Interrupts . | . . . . . Stealth | -11 -10 -10 -7 -7 --------- Run | Yrd Mat Sub Rec Scr Distress Signals . | . . . . . Communications Jammed . | . . . . . Distress Signals . | . . . . . Times Spotted 60 | . 20 29 1 10 Peak Tracking Total 12 | . 3 6 1 12 Tactical Retreats 6 | . 4 2 . . Traps | -11 -10 -10 -7 -7 ------- Run | Yrd Mat Sub Rec Scr Traps Triggered 1 | . . 1 . . Indirectly . | . . . . . Trap Hack Attempts . | . . . . . Triggered . | . . . . . Disarmed 4 | . 4 . . . Reprogrammed . | . . . . . Reused . | . . . . . Traps Extracted . | . . . . . Installed . | . . . . . Triggered . | . . . . . Machines | -11 -10 -10 -7 -7 ---------- Run | Yrd Mat Sub Rec Scr Machines Disabled 46 | . 28 . 18 . Max in Single Turn 5 | . 2 . 5 . Machines Repaired . | . . . . . Machines Dismantled . | . . . . . Machines Sabotaged . | . . . . . Overloaded Fab Kills . | . . . . . Hacking | -11 -10 -10 -7 -7 --------- Run | Yrd Mat Sub Rec Scr Machines Accessed 24 | . 7 1 14 2 Terminals 13 | . 7 . 6 . Fabricators . | . . . . . Repair Stations . | . . . . . Recycling Units 6 | . . . 6 . Scanalyzers . | . . . . . Garrison Access . | . . . . . Total Hacks 104 | . 29 5 58 12 Successful 83 | . 23 5 43 12 Failed 21 | . 6 . 15 . Catastrophic 2 | . . . 2 . Database Lockouts . | . . . . . Manual 30 | . 11 . 18 1 Terminals 49 | . 29 . 20 . Fabricators . | . . . . . Repair Stations . | . . . . . Recycling Units 13 | . . . 13 . Scanalyzers . | . . . . . Garrison Access . | . . . . . Terminal Hacks 65 | . 16 5 32 12 Record 42 | . . 5 25 12 Part Schematic 1 | . . . 1 . Prototype ID Bank 4 | . 2 . 2 . Level Access Points 1 | . 1 . . . Emergency Access Points 1 | . 1 . . . Machine Index 1 | . . . 1 . Terminal Index 1 | . 1 . . . Alert Level 1 | . 1 . . . Locate Traps 6 | . 5 . 1 . Disarm Traps 1 | . 1 . . . Dispatch Records 1 | . 1 . . . Hauler Manifests 1 | . 1 . . . Registered Components 1 | . 1 . . . Zone Layout 2 | . 1 . 1 . Release Object 1 | . . . 1 . Fabricator Hacks . | . . . . . Repair Station Hacks . | . . . . . Recycling Unit Hacks 5 | . . . 5 . Retrieve Components 5 | . . . 5 . Scanalyzer . | . . . . . Garrison Access Hacks . | . . . . . Unauthorized Hacks 12 | . 7 . 5 . Terminals 12 | . 7 . 5 . Botnet 12 | . 7 . 5 . Fabricators . | . . . . . Repair Stations . | . . . . . Recycling Units . | . . . . . Scanalyzers . | . . . . . Garrison Access . | . . . . . Data Cores Recovered . | . . . . . Used . | . . . . . Hacking Detections 16 | . 7 . 9 . Full Trace Events 11 | . 5 . 6 . Feedback Events 1 | . 1 . . . Corruption 1 | . 1 . . . Feedback Blocked . | . . . . . Robot Schematics Acquired . | . . . . . Robots Built . | . . . . . Authchips . | . . . . . Time . | . . . . . Total Robot Build Rating . | . . . . . Part Schematics Acquired 1 | . . . 1 . Parts Built . | . . . . . Authchips . | . . . . . Time . | . . . . . Total Part Build Rating . | . . . . . Part Studies Acquired . | . . . . . Parts Repaired . | . . . . . Time . | . . . . . Parts Recycled . | . . . . . Recycled Matter . | . . . . . Retrieved Matter . | . . . . . Retrieved Components 7 | . . . 7 . Parts Scanalyzed . | . . . . . Part Schematics Acquired . | . . . . . Parts Damaged . | . . . . . Bothacking | -11 -10 -10 -7 -7 ------------ Run | Yrd Mat Sub Rec Scr Used RIF Installer . | . . . . . Robots Hacked . | . . . . . Non-combat . | . . . . . Combat . | . . . . . Robot Hacks Applied . | . . . . . Relay Couplers Released . | . . . . . Fabnet Peak Effective % . | . . . . . Robots Rewired . | . . . . . Allies Hacked . | . . . . . Hacks Repelled . | . . . . . Allies | -11 -10 -10 -7 -7 -------- Run | Yrd Mat Sub Rec Scr Total Allies . | . . . . . Largest Group . | . . . . . Highest-Rated Group . | . . . . . Highest-Rated Ally . | . . . . . Total Orders . | . . . . . Ally Attacks . | . . . . . Total Damage . | . . . . . Kills . | . . . . . Allies Corrupted . | . . . . . Allies Melted . | . . . . . Intel | -11 -10 -10 -7 -7 ------- Run | Yrd Mat Sub Rec Scr Active Infowar (turns) 3505 | . 1583 1162 497 263 Structural 3257 | . 1335 1162 497 263 Seismic 462 | . 462 . . . Robot Analysis Total . | . . . . . Derelict Logs Recovered 3 | . . 3 . . Drone Launches . | . . . . . Drone Recoveries . | . . . . . Exploration | -11 -10 -10 -7 -7 ------------- Run | Yrd Mat Sub Rec Scr Turns Passed 3909 | 161 1826 1162 497 263 Spaces Moved 4893 | 118 1262 1834 969 710 Core 30 | 30 . . . . Treads . | . . . . . Legs 818 | 88 730 . . . Wheels . | . . . . . Hover . | . . . . . Flight 4045 | . 532 1834 969 710 Fastest Speed 34 | 50 37 34 34 34 Average Speed 50 | 102 85 38 34 34 Slowest Speed 120 | 120 120 117 34 114 Overloaded Moves . | . . . . . Propulsion Burnouts . | . . . . . Robots Hopped 4 | . . . 4 . Potential Cave-ins . | . . . . . Cave-ins Triggered . | . . . . . Exploration Rate (%) 66 | 5 98 84 99 44 Regions Visited 4 Branch Regions 3 Pre-discovered Areas 2 | . . 2 . . Known Exits Taken 1 | . . 1 . . Unknown Exits Taken 3 | 1 1 . 1 . Scrap Searched 15 | . . 8 . 7 Spaces Dug 7 | . 6 . . 1 Terrain Destroyed 182 | . 150 . 31 1 Melee 1 | . . . . 1 Projectile 10 | . 8 . 2 . AOE 171 | . 142 . 29 . Terrain Rammed . | . . . . . Walls Destroyed . | . . . . . Machines Disabled . | . . . . . Actions | -11 -10 -10 -7 -7 --------- Run | Yrd Mat Sub Rec Scr Total 5691 | 138 1697 2087 1039 730 Wait 372 | . 245 110 8 9 Move 4881 | 117 1261 1833 960 710 Hop 4 | . . . 4 . Pick Up 16 | 2 3 6 2 3 Fast Attach 13 | 5 5 2 1 . Attach 5 | . 1 3 . 1 Detach 1 | . . . . 1 Swap 25 | 2 10 11 . 2 Drop 18 | 1 6 7 1 3 Fire 283 | 11 138 79 55 . Melee 1 | . . . . 1 Ram . | . . . . . Kick 1 | . 1 . . . Crush . | . . . . . Escape Stasis . | . . . . . Rewire . | . . . . . Trap . | . . . . . Miscellaneous 71 | . 27 36 8 . Route ------- -11/Scrapyard -10/Materials (discovered 5 exits: *Mat x3 / [*Min] / *Sub) -10/Subcaves (discovered 2 exits: [*Mat] / *Rec) -7/Recycling (discovered 2 exits: [*Fac] / *Scr) -7/Scraptown History --------- Turn | Location | Event 7 | -11/Scrapyard | Discovered new exit (range 15) 18 | -11/Scrapyard | Upgraded with Propulsion slot (x1) 18 | -11/Scrapyard | Upgraded with Utility slot (x1) 18 | -11/Scrapyard | Upgraded with Weapon slot (x1) 162 | -11/Scrapyard | Entered Materials 306 | -10/Materials | Build established: Mutant 444 | -10/Materials | Discovered new exit (range 10) 655 | -10/Materials | Discovered new exit (range 15) 662 | -10/Materials | Derelicts attacked the area 967 | -10/Materials | Discovered new exit (range 3) 1076 | -10/Materials | Discovered new exit (range 4) 1096 | -10/Materials | Reached level 2 1109 | -10/Materials | Identified exit to Materials 1599 | -10/Materials | Reached level 3 1988 | -10/Materials | Entered Subcaves 1989 | -10/Subcaves | Approached by a straggling Scientist 2022 | -10/Subcaves | Ambushed by Subdwellers from Twisted Machinery 2107 | -10/Subcaves | A swath of the cavern ceiling suddenly collapsed 2129 | -10/Subcaves | Ambushed by swarm of Subdwellers 2229 | -10/Subcaves | Learned location of Storage (-7) 2260 | -10/Subcaves | A swath of the cavern ceiling suddenly collapsed 2385 | -10/Subcaves | Shifting Twisted Machinery released Sub. Laser 2387 | -10/Subcaves | Shifting Twisted Machinery released Battle Cannon 2613 | -10/Subcaves | Reached level 4 2675 | -10/Subcaves | Upgraded with Utility slot (x1) 2746 | -10/Subcaves | Learned Materials non-interactive machine intel 2754 | -10/Subcaves | Ambushed by Subdwellers from Twisted Machinery 2989 | -10/Subcaves | Discovered new exit (range 14) 3004 | -10/Subcaves | Visited Clippyterm 3005 | -10/Subcaves | Identified exit to Recycling 3005 | -10/Subcaves | Learned Research security intel 3108 | -10/Subcaves | Upgraded with Propulsion slot (x1) 3150 | -10/Subcaves | Entered Recycling 3152 | -7/Recycling | Reached level 5 3331 | -7/Recycling | Discovered new exit (range 7) 3346 | -7/Recycling | Scanned before Scraplab entrance 3460 | -7/Recycling | Core integrity fell below 50% 3514 | -7/Recycling | Core integrity fell below 20% 3529 | -7/Recycling | Reached level 6 3641 | -7/Recycling | Discovered new exit (range 11) 3647 | -7/Recycling | Entered Scraptown 3787 | -7/Scraptown | Visited Symbiants 3794 | -7/Scraptown | Visited Comm Corps 3809 | -7/Scraptown | Visited Shadow of the Wyrm 3816 | -7/Scraptown | Visited Bundlers 3836 | -7/Scraptown | Visited The Evicted 3890 | -7/Scraptown | Attacked by Scraptown defenders 3910 | -7/Scraptown | Destroyed by BK-IT5(E) with Heavy Battle Rifle Last Messages --------------- 03825_ Found Imp. Salvage Targeting Computer. 03825_ Found Imp. Carbon-fiber Leg. 03825_ Found Weight Redist. System. 03825_ Found 30 Matter. 03826_ LOCAL NARROWCAST: Training Area. Open sessions every third cycle. 03836_ LOCAL NARROWCAST: The Evicted. MG-8DM(z): Scraptown is cool with our machinery as long as we keep it in here. What a great place! 2N-HXJ(z): I got kicked out of Zion for being "too nosy", whatever that means. You have activated Keyboard Mode (toggled via F2 or the Options menu), which hides your mouse cursor and enables keyboard-controlled map look functionality. For hardcore keyboard-only players. 03890_ ANNOUNCEMENT: Intruder alert! Defend Scraptown! 03908_ Slug penetrates Wall. Map ----- +----------------------------------------------------+ | " !] "##""= # ????? | | " !] "##"%!! # ????? | | " /| "##""! # ##############????? | | " =* "#### ## # ##############????? | | " =! "##!] ]# # ##????????????????? | | " "## = # # ##????????????????? | | """" ""## # !! ! ###############???? | | #### #### ! #"%" "%" # ###############???? | | #### ####]/ #""" """ # ###""""""""""#### | | """" ""################# ###"" " " ""#### | | " "################# ###"" """ "#### | | " "" "##?????????????## ###"" " ""#### | | " "" "##?????????????## ###" "" "#### | | " "##??????######### z###" " "#### | | ""##????########### ###" " ""#### | | " """""##????####" # ###"" ""#### | | """""""##????## # ###"" < """#### | | """""""##????###" # z###"" ""#### | | #########????## # #### ############ | | #########????## # | | #"""X""##????###" g | | #" "##????## #g r | | #" "##????####" # | | #" "##????###########g | | #" "##??????### cE j | | #" "######## # @ g | | #"" """########### x | | ;########### ####### ###### | | r r #### ## | | #"" """##"" """### ####" "##" | | #" "##"" "### ####" ######" "##"" | | #"" "##"" "### ####" "#""" # "##"" | | #"" "##"" "### ####" "# #" "##"" | | #"" " "##" "### ####" # ""#" "##"" | | #"""" "##" "### ####" ##/###" "##"" " " | | #""""""##""""""### ####" "##""""""X"" | | ################## ####""""""""""""##""""""""" | | ################## ########################### | | """""""###"""##?## ########################### | | " "###" "##?## ##??????????????????####### | | " """ "### ##### ##????????????????##""""""" | | " """ "### ##### ###?????????########""""" " | | " """ "### ###?????????########"""" " | | " """ "### ##?########## | | " """ "### ###?########## #####"" "" | | " """ "####### ### ####?"""""##""" "####""""""" | | " """ "####### #########"" ""##""" "####""""""" | | """ "####### #########"" "##""" "########### | | " """ "##""""" """""####" ""##"" "########### | | " "##"""%" " "####"" ""##"" "###"""""""" | +----------------------------------------------------+ Best States ------------- Heat Dissipation 25 Energy Generation 10 Energy Capacity 125 Matter Stores 300 Matter Capacity 300 Sight Range 18 Terrain Scan Density 10 Power Shielding 33 Evasion (%) 63 Item Schematics ----------------- VTOL Module | -7/Recycling | Hacked Robot Schematics ------------------ None Fabricated ------------ Nothing Repaired ---------- Nothing Studied --------- None Alien Tech Used ----------------- None Achievements -------------- Civilization 2243 For Emergencies Only I Have A Map? Organ Harvest You May Approach The Wall Challenges ------------ None RPGLIKE | -11 -10 -10 -7 -7 --------- Run | Yrd Mat Sub Rec Scr Levels Raised 5 | . 2 1 2 . XP Earned 11035 | 3000 3405 1600 2530 500 XP Spent 6100 | 2750 . 3350 . . Upgrades 12 | 8 . 4 . . Propulsion Slot 2 | 1 . 1 . . Utility Slot 2 | 1 . 1 . . Weapon Slot 1 | 1 . . . . Mass Support 1 | 1 . . . . Inventory Capacity 4 | 2 . 2 . . Sight Range 2 | 2 . . . . Protomatter Created 287 | . 232 55 . . Integrity Restored 1519 | . 574 771 174 . Core 1355 | . 476 705 174 . Parts 164 | . 98 66 . . Protomatter Decayed 120 | . 44 76 . . Game ------ Seed MasterBehemothBattery Manual? 0 Play Time 01:22:33 Cumulative 67.3 hours Start 2025.10.22 @ 16:40:37 End 2025.10.22 @ 21:01:48 Sessions 1 Manual Loads 0 Difficulty Rogue Special Mode Winter2019/RPGLIKE Game No. 37 Rogue 37 Adventurer 0 Explorer 0 Win Type - Total 1 Types 0/0/0/1/0/0/0/0/0/0 Lore% 33 Gallery% 32 Achievement% 23 Wizard Run 0 Options --------- Layout 2 ASCII 0 Keyboard 0 Movement Mouse Keybinds 0 Fullscreen 2 Font 24/Terminus Map View 50x44 Zoom Use 0% Tactical HUD 1 Map Filters NONE Filters NONE Steam 1 RUN: 7cc7487c-6f96-48a8-8761-3b5c8f9bdaf5